fUSD/lending_fUSD_20251112
["ID","MTS","AMOUNT","RATE_DAILY","PERIOD"]
[393735904,1762956675490,-500.0,0.00040135,20]
[393735905,1762956675499,-500.0,0.00040135,20]
[393735906,1762956675509,-319.57863669,0.00040135,20]
[393735907,1762956675518,-500.0,0.00040135,10]
[393735908,1762956675527,-500.0,0.00040135,10]
[393735909,1762956675536,-441.79681599,0.00040135,10]
[393735910,1762956675545,-500.0,0.00040135,20]
[393735911,1762956675554,-500.0,0.00040135,20]
[393735912,1762956675563,-500.0,0.00040135,20]
[393735913,1762956675572,-238.75796251,0.00040135,20]
[393735914,1762956675582,-500.0,0.00040135,20]
[393735915,1762956675593,-500.0,0.00040135,20]
[393735916,1762956675602,-500.0,0.00040135,20]
[393735917,1762956675612,-500.0,0.00040135,20]
[393735918,1762956675621,-500.0,0.00040135,20]
[393735919,1762956675630,-500.0,0.00040135,20]
[393735920,1762956675639,-552.21,0.00040135,20]
[393735921,1762956675649,-500.0,0.00040135,20]
[393735922,1762956675658,-552.21,0.00040135,20]
[393735923,1762956675810,-267.30719057,0.00040135,20]
[393735924,1762956675823,-552.21,0.00040135,20]
[393735925,1762956675833,-552.21,0.00040135,20]
[393735926,1762956675848,-552.21,0.00040135,20]
[393735927,1762956675858,-660.97,0.00040135,20]
[393735928,1762956675869,-952.35,0.00040135,20]
[393735929,1762956675879,-552.21,0.00040135,20]
[393735930,1762956675888,-660.97,0.00040135,20]
[393735931,1762956675897,-952.35,0.00040135,20]
[393735932,1762956675906,-552.21,0.00040135,20]
[393735933,1762956675917,-660.97,0.00040135,20]
[393735934,1762956675927,-952.35,0.00040135,20]
[393735935,1762956675936,-552.21,0.00040135,20]
[393735936,1762956675946,-540.76,0.00040135,20]
[393735937,1762956675955,-660.97,0.00040135,20]
[393735938,1762956675964,-952.35,0.00040135,20]
[393735939,1762956675974,-552.27986316,0.00040135,20]
[393735940,1762956675984,-540.76,0.00040135,20]
[393735941,1762956675993,-660.97,0.00040135,20]
[393735942,1762956676002,-952.35,0.00040135,20]
[393735943,1762956676012,-540.76,0.00040135,20]
[393735944,1762956676021,-660.97,0.00040135,20]
[393735945,1762956676031,-952.35,0.00040135,20]
[393735946,1762956676040,-660.97,0.00040135,20]
[393735947,1762956676049,-952.35,0.00040135,20]
[393735948,1762956676059,-540.76,0.00040135,20]
[393735949,1762956676069,-660.97,0.00040135,20]
[393735950,1762956676078,-952.35,0.00040135,20]
[393735951,1762956676088,-540.76,0.00040135,20]
[393735952,1762956676098,-661.14681531,0.00040135,20]
[393735953,1762956676107,-540.76,0.00040135,20]
[393735954,1762956676117,-952.4168088,0.00040135,20]
[393735955,1762956676127,-540.76,0.00040135,20]
[393735956,1762956676136,-540.76,0.00040135,20]
[393735957,1762956676146,-540.90239049,0.00040135,20]
[393735958,1762956676155,-601.4,0.00040135,20]
[393735959,1762956676165,-601.4,0.00040135,20]
[393735960,1762956676175,-601.4,0.00040135,20]
[393735961,1762956676184,-601.4,0.00040135,20]
[393735962,1762956676194,-840.02,0.00040135,20]
[393735963,1762956676203,-601.4,0.00040135,20]
[393735964,1762956676213,-1035.47,0.00040135,20]
[393735965,1762956676222,-840.02,0.00040135,20]
[393735966,1762956676231,-601.4,0.00040135,20]
[393735967,1762956676241,-1035.47,0.00040135,20]
[393735968,1762956676250,-840.02,0.00040135,20]
[393735969,1762956676258,-601.4,0.00040135,20]
[393735970,1762956676267,-1035.47,0.00040135,20]
[393735971,1762956676276,-840.02,0.00040135,20]
[393735972,1762956676285,-601.4,0.00040135,20]
[393735973,1762956676295,-1035.47,0.00040135,20]
[393735974,1762956676304,-840.02,0.00040135,20]
[393735975,1762956676314,-601.50097017,0.00040135,20]
[393735976,1762956676323,-1035.47,0.00040135,20]
[393735977,1762956676332,-840.02,0.00040135,20]
[393735978,1762956676341,-1035.47,0.00040135,20]
[393735979,1762956676353,-840.02,0.00040135,20]
[393735980,1762956676362,-500.0,0.00040135,20]
[393735981,1762956676372,-1035.47,0.00040135,20]
[393735982,1762956676381,-840.02,0.00040135,20]
[393735983,1762956676391,-500.0,0.00040135,20]
[393735984,1762956676400,-1035.47,0.00040135,20]
[393735985,1762956676409,-840.1105403,0.00040135,20]
[393735986,1762956676420,-500.0,0.00040135,20]
[393735987,1762956676430,-1035.51610648,0.00040135,20]
[393735988,1762956676440,-500.0,0.00040135,20]
[393735989,1762956676449,-500.0,0.00040135,20]
[393735990,1762956676460,-500.0,0.00040135,20]
[393735991,1762956676469,-1556.2,0.00040135,20]
[393735992,1762956676479,-500.0,0.00040135,20]
[393735993,1762956676488,-1556.2,0.00040135,20]
[393735994,1762956676498,-242.13522137,0.00040135,20]
[393735995,1762956676507,-1556.2,0.00040135,20]
[393735996,1762956676517,-1556.2,0.00040135,20]
[393735997,1762956676526,-1556.2,0.00040135,20]
[393735998,1762956676535,-1556.2,0.00040135,20]
[393735999,1762956676544,-1556.2,0.00040135,20]
[393736000,1762956676554,-1556.2,0.00040135,20]
[393736001,1762956676563,-1556.37674874,0.00040135,20]
[393736002,1762956676573,-7930.44,0.00040135,20]
[393736003,1762956676582,-7930.44,0.00040135,20]
[393736004,1762956676600,-7930.44,0.00040135,20]
[393736005,1762956676610,-7930.44,0.00040135,20]
[393736006,1762956676619,-7930.44,0.00040135,20]
[393736007,1762956676629,-7930.44,0.00040135,20]
[393736008,1762956676639,-7930.44,0.00040135,20]
[393736009,1762956676649,-500.0,0.00040135,20]
[393736010,1762956676659,-500.0,0.00040135,20]
[393736011,1762956676668,-7930.44,0.00040135,20]
[393736012,1762956676678,-7930.53224358,0.00040135,20]
[393736013,1762956676687,-500.0,0.00040135,20]
[393736014,1762956676697,-500.0,0.00040135,20]
[393736015,1762956676707,-517.78194901,0.00040135,20]
[393736016,1762956676716,-500.0,0.00040135,20]
[393736017,1762956676726,-922.6,0.00040135,20]
[393736018,1762956676736,-500.0,0.00040135,20]
[393736019,1762956676748,-922.6,0.00040135,20]
[393736020,1762956676758,-519.30947123,0.00040135,20]
[393736021,1762956676768,-922.6,0.00040135,20]
[393736022,1762956676778,-922.6,0.00040135,20]
[393736023,1762956676787,-922.6,0.00040135,20]
[393736024,1762956676798,-778.92,0.00040135,20]
[393736025,1762956676807,-922.6,0.00040135,20]
[393736026,1762956676817,-778.92,0.00040135,20]
[393736027,1762956676827,-922.6,0.00040135,20]
[393736028,1762956676836,-778.92,0.00040135,20]
[393736029,1762956676848,-922.6,0.00040135,20]
[393736030,1762956676857,-778.92,0.00040135,20]
[393736031,1762956676866,-922.7253779,0.00040135,20]
[393736032,1762956676876,-778.92,0.00040135,20]
[393736033,1762956676886,-778.92,0.00040135,20]
[393736034,1762956676896,-778.92,0.00040135,20]
[393736035,1762956676905,-778.92,0.00040135,20]
[393736036,1762956676915,-779.02024771,0.00040135,20]
[393736037,1762956676926,-626.6,0.00040135,20]
[393736038,1762956676936,-626.6,0.00040135,20]
[393736039,1762956676945,-626.6,0.00040135,20]
[393736040,1762956676955,-626.6,0.00040135,20]
[393736041,1762956676965,-626.6,0.00040135,20]
[393736042,1762956676974,-626.6,0.00040135,20]
[393736043,1762956676983,-626.6,0.00040135,20]
[393736044,1762956676993,-626.6,0.00040135,20]
[393736045,1762956677002,-626.6807991,0.00040135,20]
[393736046,1762956677011,-823.17,0.00040135,20]
[393736047,1762956677021,-823.17,0.00040135,20]
[393736048,1762956677031,-823.17,0.00040135,20]
[393736049,1762956677041,-823.17,0.00040135,20]
[393736050,1762956677050,-823.17,0.00040135,20]
[393736051,1762956677059,-823.17,0.00040135,20]
[393736052,1762956677068,-823.17,0.00040135,20]
[393736053,1762956677077,-823.17,0.00040135,20]
[393736054,1762956677087,-500.0,0.00040135,20]
[393736055,1762956677096,-823.3438294,0.00040135,20]
[393736056,1762956677106,-500.0,0.00040135,20]
[393736057,1762956677115,-500.0,0.00040135,20]
[393736058,1762956677124,-500.0,0.00040135,20]
[393736059,1762956677134,-419.56511654,0.00040135,20]
[393736060,1762956677143,-597.47,0.00040135,20]
[393736061,1762956677153,-597.47,0.00040135,20]
[393736062,1762956677163,-597.47,0.00040135,20]
[393736063,1762956677173,-504.05,0.00040135,20]
[393736064,1762956677183,-597.47,0.00040135,20]
[393736065,1762956677192,-597.47,0.00040135,20]
[393736066,1762956677201,-504.05,0.00040135,20]
[393736067,1762956677211,-597.47,0.00040135,20]
[393736068,1762956677220,-500.0,0.00040135,20]
[393736069,1762956677229,-504.05,0.00040135,20]
[393736070,1762956677239,-597.47,0.00040135,20]
[393736071,1762956677248,-500.0,0.00040135,20]
[393736072,1762956677257,-504.05,0.00040135,20]
[393736073,1762956677266,-597.47,0.00040135,20]
[393736074,1762956677275,-310.81931525,0.00040135,20]
[393736075,1762956677284,-504.05,0.00040135,20]
[393736076,1762956677293,-597.62825142,0.00040135,20]
[393736077,1762956677303,-504.05,0.00040135,20]
[393736078,1762956677312,-504.05,0.00040135,20]
[393736079,1762956677321,-504.05,0.00040135,20]
[393736080,1762956677333,-504.2728267,0.00040135,20]
[393736081,1762956677343,-1258.69,0.00040135,20]
[393736082,1762956677352,-1258.69,0.00040135,20]
[393736083,1762956677361,-1258.69,0.00040135,20]
[393736084,1762956677371,-1258.69,0.00040135,20]
[393736085,1762956677379,-1258.69,0.00040135,20]
[393736086,1762956677388,-1258.69,0.00040135,20]
[393736087,1762956677398,-1258.69,0.00040135,20]
[393736088,1762956677406,-500.0,0.00040135,20]
[393736089,1762956677415,-1258.69,0.00040135,20]
[393736090,1762956677425,-1258.74644971,0.00040135,20]
[393736091,1762956677434,-500.0,0.00040135,20]
[393736092,1762956677443,-815.43,0.00040135,20]
[393736093,1762956677453,-815.43,0.00040135,20]
[393736094,1762956677462,-815.43,0.00040135,20]
[393736095,1762956677472,-815.43,0.00040135,20]
[393736096,1762956677482,-815.43,0.00040135,20]
[393736097,1762956677491,-815.43,0.00040135,20]
[393736098,1762956677500,-500.0,0.00040135,20]
[393736099,1762956677509,-815.43,0.00040135,20]
[393736100,1762956677519,-500.0,0.00040135,20]
[393736101,1762956677528,-815.43,0.00040135,20]
[393736102,1762956677538,-500.0,0.00040135,20]
[393736103,1762956677547,-815.48018816,0.00040135,20]
[393736104,1762956677557,-500.0,0.00040135,20]
[393736105,1762956677566,-500.0,0.00040135,20]
[393736106,1762956677575,-643.18347631,0.00040135,20]
[393736107,1762956677584,-717.33,0.00040135,20]
[393736108,1762956677593,-717.33,0.00040135,20]
[393736109,1762956677602,-717.33,0.00040135,20]
[393736110,1762956677613,-717.33,0.00040135,20]
[393736111,1762956677622,-717.33,0.00040135,20]
[393736112,1762956677631,-717.33,0.00040135,20]
[393736113,1762956677640,-717.33,0.00040135,20]
[393736114,1762956677650,-717.33,0.00040135,20]
[393736115,1762956677659,-717.45018408,0.00040135,20]
[393736116,1762956677668,-500.0,0.00040135,20]
[393736117,1762956677677,-500.0,0.00040135,20]
[393736118,1762956677687,-500.0,0.00040135,20]
[393736119,1762956677696,-500.0,0.00040135,20]
[393736120,1762956677706,-500.0,0.00040135,20]
[393736121,1762956677715,-500.0,0.00040135,20]
[393736122,1762956677724,-461.77897433,0.00040135,20]
[393736123,1762956677734,-1605.45,0.00040135,20]
[393736124,1762956677743,-1605.45,0.00040135,20]
[393736125,1762956677752,-1605.45,0.00040135,20]
[393736126,1762956677761,-1605.45,0.00040135,20]
[393736127,1762956677770,-1605.45,0.00040135,20]
[393736128,1762956677780,-1605.45,0.00040135,20]
[393736129,1762956677789,-1605.45,0.00040135,20]
[393736130,1762956677798,-1605.45,0.00040135,20]
[393736131,1762956677808,-1605.4949496,0.00040135,20]
[393736132,1762956677817,-500.0,0.00040135,20]
[393736133,1762956677826,-500.0,0.00040135,20]
[393736134,1762956677834,-500.0,0.00040135,20]
[393736135,1762956677844,-500.0,0.00040135,20]
[393736136,1762956677856,-500.0,0.00040135,20]
[393736137,1762956677865,-500.0,0.00040135,20]
[393736138,1762956677874,-500.0,0.00040135,20]
[393736139,1762956677883,-500.0,0.00040135,20]
[393736140,1762956677894,-370.11123757,0.00040135,20]
[393736141,1762956677903,-500.0,0.00040135,20]
[393736142,1762956677914,-500.0,0.00040135,20]
[393736143,1762956677925,-500.0,0.00040135,20]
[393736144,1762956677934,-500.0,0.00040135,20]
[393736145,1762956677944,-500.0,0.00040135,20]
[393736146,1762956677953,-298.81514845,0.00040135,20]
[393736147,1762956677963,-630.23,0.00040135,20]
[393736148,1762956677972,-630.23,0.00040135,20]
[393736149,1762956677981,-630.23,0.00040135,20]
[393736150,1762956677991,-630.23,0.00040135,20]
[393736151,1762956678001,-630.23,0.00040135,20]
[393736152,1762956678010,-630.23,0.00040135,20]
[393736153,1762956678019,-630.23,0.00040135,20]
[393736154,1762956678028,-630.23,0.00040135,20]
[393736155,1762956678037,-630.44180969,0.00040135,20]
[393736156,1762956678046,-876.09,0.00040135,20]
[393736157,1762956678057,-876.09,0.00040135,20]
[393736158,1762956678066,-876.09,0.00040135,20]
[393736159,1762956678075,-876.09,0.00040135,20]
[393736160,1762956678084,-876.09,0.00040135,20]
[393736161,1762956678093,-876.09,0.00040135,20]
[393736162,1762956678103,-876.09,0.00040135,20]
[393736163,1762956678112,-876.09,0.00040135,20]
[393736164,1762956678121,-876.30879673,0.00040135,20]
[393736165,1762956678130,-653.98,0.00040135,20]
[393736166,1762956678139,-653.98,0.00040135,20]
[393736167,1762956678148,-653.98,0.00040135,20]
[393736168,1762956678158,-653.98,0.00040135,20]
[393736169,1762956678167,-473.16754205,0.00040135,20]
[393736170,1762956678177,-653.98,0.00040135,20]
[393736171,1762956678186,-653.98,0.00040135,20]
[393736172,1762956678196,-653.98,0.00040135,20]
[393736173,1762956678205,-653.98,0.00040135,20]
[393736174,1762956678214,-654.11283455,0.00040135,20]
[393736175,1762956678224,-298.02760828,0.00040135,20]
[393736176,1762956678234,-914.0,0.00040135,20]
[393736177,1762956678244,-914.0,0.00040135,20]
[393736178,1762956678394,-914.0,0.00040135,20]
[393736179,1762956678404,-914.0,0.00040135,20]
[393736180,1762956678414,-914.0,0.00040135,20]
[393736181,1762956678424,-914.0,0.00040135,20]
[393736182,1762956678434,-914.0,0.00040135,20]
[393736183,1762956678443,-744.88,0.00040135,20]
[393736184,1762956678453,-914.0,0.00040135,20]
[393736185,1762956678463,-744.88,0.00040135,20]
[393736186,1762956678473,-914.03869486,0.00040135,20]
[393736187,1762956678483,-744.88,0.00040135,20]
[393736188,1762956678492,-744.88,0.00040135,20]
[393736189,1762956678501,-744.88,0.00040135,20]
[393736190,1762956678511,-744.88,0.00040135,20]
[393736191,1762956678520,-744.88,0.00040135,20]
[393736192,1762956678530,-744.88,0.00040135,20]
[393736193,1762956678539,-745.01675553,0.00040135,20]
[393736194,1762956678548,-535.59,0.00040135,20]
[393736195,1762956678559,-535.59,0.00040135,20]
[393736196,1762956678568,-535.59,0.00040135,20]
[393736197,1762956678578,-535.59,0.00040135,20]
[393736198,1762956678587,-535.59,0.00040135,20]
[393736199,1762956678596,-535.59,0.00040135,20]
[393736200,1762956678606,-535.59,0.00040135,20]
[393736201,1762956678616,-535.59,0.00040135,20]
[393736202,1762956678626,-535.59491681,0.00040135,20]
[393736203,1762956678635,-661.38,0.00040135,20]
[393736204,1762956678644,-661.38,0.00040135,20]
[393736205,1762956678654,-661.38,0.00040135,20]
[393736206,1762956678663,-661.38,0.00040135,20]
[393736207,1762956678673,-661.38,0.00040135,20]
[393736208,1762956678682,-661.38,0.00040135,20]
[393736209,1762956678691,-661.38,0.00040135,20]
[393736210,1762956678701,-661.38,0.00040135,20]
[393736211,1762956678710,-661.55753819,0.00040135,20]
[393736212,1762956678719,-757.81,0.00040135,20]
[393736213,1762956678727,-757.81,0.00040135,20]
[393736214,1762956678737,-757.81,0.00040135,20]
[393736215,1762956678746,-757.81,0.00040135,20]
[393736216,1762956678754,-757.81,0.00040135,20]
[393736217,1762956678764,-757.81,0.00040135,20]
[393736218,1762956678772,-688.44,0.00040135,20]
[393736219,1762956678781,-757.81,0.00040135,20]
[393736220,1762956678791,-688.44,0.00040135,20]
[393736221,1762956678801,-757.81,0.00040135,20]
[393736222,1762956678810,-688.44,0.00040135,20]
[393736223,1762956678820,-688.44,0.00040135,20]
[393736224,1762956678829,-758.04890617,0.00040135,20]
[393736225,1762956678840,-688.44,0.00040135,20]
[393736226,1762956678853,-688.44,0.00040135,20]
[393736227,1762956678862,-688.44,0.00040135,20]
[393736228,1762956678872,-688.44,0.00040135,20]
[393736229,1762956678883,-688.53465042,0.00040135,20]
[393736230,1762956678892,-200.49008386,0.00040138,12]
[393736231,1762956678900,-500.0,0.00040168,15]
[393736232,1762956678909,-500.0,0.00040168,15]
[393736233,1762956678920,-500.0,0.00040168,15]
[393736234,1762956678930,-500.0,0.00040168,15]
[393736235,1762956678939,-500.0,0.00040168,15]
[393736236,1762956678948,-500.0,0.00040168,15]
[393736237,1762956678958,-500.0,0.00040168,15]
[393736238,1762956678967,-500.0,0.00040168,15]
[393736239,1762956678976,-500.0,0.00040168,15]
[393736240,1762956678985,-500.0,0.00040168,15]
[393736241,1762956678994,-500.0,0.00040168,15]
[393736242,1762956679004,-500.0,0.00040168,15]
[393736243,1762956679013,-500.0,0.00040168,15]
[393736244,1762956679022,-500.0,0.00040168,15]
[393736245,1762956679031,-500.0,0.00040168,15]
[393736246,1762956679040,-500.0,0.00040168,15]
[393736247,1762956679052,-1000.0,0.00040173,5]
[393736248,1762956679061,-1215.10047862,0.00040176,14]
[393736249,1762956679071,-500.0,0.00040184,30]
[393736250,1762956679081,-218.27,0.00040196,13]
[393736251,1762956679091,-274.8,0.000402,14]
[393736252,1762956679100,-250.0,0.000402,120]
[393736253,1762956679109,-215.8,0.000402,26]
[393736254,1762956679120,-197.524061,0.0004023,30]
[393736255,1762956679130,-150.05,0.00040232,30]
[393736256,1762956679139,-285.39348468,0.00040232,30]
[393736257,1762956679149,-285.39348468,0.00040232,30]
[393736258,1762956679158,-285.39348468,0.00040232,30]
[393736259,1762956679168,-285.39348468,0.00040232,30]
[393736260,1762956679178,-1037.0,0.00040242,30]
[393736261,1762956679188,-4738.99618093,0.00040244,15]
[393736262,1762956679197,-167.47242141,0.00040244,2]
[393736263,1762956679207,-156.53410877,0.00040244,15]
[393736264,1762956679216,-238.72003726,0.00040244,2]
[393736265,1762956679226,-292.01543013,0.00040244,2]
[393736266,1762956679235,-200.49008386,0.00040244,12]
[393736267,1762956679244,-164.48213506,0.00040244,2]
[393736268,1762956679254,-495.74912012,0.00040244,8]
[393736269,1762956679264,-154.01,0.00040244,120]
[393736270,1762956679274,-169.14351444,0.00040244,120]
[393736271,1762956679282,-169.14,0.00040244,120]
[393736272,1762956679292,-157.86728015,0.00040244,120]
[393736273,1762956679302,-157.86728015,0.00040244,120]
[393736274,1762956679311,-157.86728015,0.00040244,120]
[393736275,1762956679321,-157.86728015,0.00040244,120]
[393736276,1762956679330,-157.86,0.00040244,120]
[393736277,1762956679339,-178.35802767,0.00040244,120]
[393736278,1762956679349,-178.35802767,0.00040244,120]
[393736279,1762956679358,-178.35,0.00040244,120]
[393736280,1762956679367,-156.06327421,0.00040244,120]
[393736281,1762956679377,-156.06327421,0.00040244,120]
[393736282,1762956679387,-156.06327421,0.00040244,120]
[393736283,1762956679396,-156.06327421,0.00040244,120]
[393736284,1762956679405,-156.06327421,0.00040244,120]
[393736285,1762956679414,-156.06327421,0.00040244,120]
[393736286,1762956679423,-156.06327421,0.00040244,120]
[393736287,1762956679433,-156.06,0.00040244,120]
[393736288,1762956679448,-527.623455,0.00040285,120]
[393736289,1762956679461,-164.44623621,0.0004029,60]
[393736290,1762956679473,-229.8,0.000403,60]
[393736291,1762956679483,-1061.8,0.000403,30]
[393736292,1762956679495,-215.8,0.000403,26]
[393736293,1762956679506,-1010.46563839,0.000403,30]
[393736294,1762956679516,-177.0,0.000403,20]
[393736295,1762956679526,-180.37433873,0.0004034,120]
[393736296,1762956679536,-322.0,0.0004034,30]
[393736297,1762956679546,-151.0,0.00040344,120]
[393736298,1762956679555,-153.39399,0.00040344,120]
[393736299,1762956679564,-153.212537,0.00040344,120]
[393736300,1762956679573,-154.115647,0.00040344,120]
[393736301,1762956679582,-152.348958,0.00040344,120]
[393736302,1762956679591,-151.069191,0.00040344,5]
[393736303,1762956679600,-152.822137,0.00040344,120]
[393736304,1762956679610,-151.0,0.00040344,120]
[393736305,1762956679619,-151.0,0.00040344,120]
[393736306,1762956679629,-151.0,0.00040344,120]
[393736307,1762956679639,-153.652512,0.00040344,120]
[393736308,1762956679650,-170.808803,0.00040344,120]
[393736309,1762956679659,-151.0,0.00040344,60]
[393736310,1762956679668,-151.0,0.00040344,120]
[393736311,1762956679677,-174.511435,0.00040344,120]
[393736312,1762956679687,-157.160354,0.00040344,120]
[393736313,1762956679696,-151.135937,0.00040344,120]
[393736314,1762956679706,-151.0,0.00040344,120]
[393736315,1762956679716,-189.101147,0.00040344,120]
[393736316,1762956679726,-151.0,0.00040344,120]
[393736317,1762956679735,-156.397523,0.00040344,120]
[393736318,1762956679744,-151.0,0.00040344,120]
[393736319,1762956679753,-151.0,0.00040344,120]
[393736320,1762956679762,-151.0,0.00040344,120]
[393736321,1762956679771,-151.0,0.00040344,120]
[393736322,1762956679780,-151.0,0.00040344,120]
[393736323,1762956679790,-151.0,0.00040344,120]
[393736324,1762956679799,-159.587371,0.00040344,30]
[393736325,1762956679809,-151.0,0.00040344,120]
[393736326,1762956679818,-151.0,0.00040344,120]
[393736327,1762956679827,-151.0,0.00040344,120]
[393736328,1762956679836,-151.0,0.00040344,120]
[393736329,1762956679849,-151.0,0.00040344,120]
[393736330,1762956679859,-155.601954,0.00040344,120]
[393736331,1762956679869,-154.011465,0.00040344,90]
[393736332,1762956679878,-151.0,0.00040344,120]
[393736333,1762956679888,-151.0,0.00040344,120]
[393736334,1762956679898,-186.372097,0.00040344,120]
[393736335,1762956679907,-151.0,0.00040344,120]
[393736336,1762956679919,-151.0,0.00040344,120]
[393736337,1762956679931,-151.0,0.00040344,120]
[393736338,1762956679941,-151.0,0.00040344,120]
[393736339,1762956679950,-151.0,0.00040344,120]
[393736340,1762956679960,-151.0,0.00040344,120]
[393736341,1762956679970,-151.0,0.00040344,120]
[393736342,1762956679980,-154.014904,0.00040344,120]
[393736343,1762956679989,-153.760684,0.00040344,120]
[393736344,1762956679999,-151.0,0.00040344,120]
[393736345,1762956680009,-151.0,0.00040344,120]
[393736346,1762956680018,-151.0,0.00040344,120]
[393736347,1762956680028,-151.0,0.00040344,120]
[393736348,1762956680038,-157.763248,0.00040344,120]
[393736349,1762956680048,-151.0,0.00040344,120]
[393736350,1762956680059,-153.101118,0.00040344,120]
[393736351,1762956680068,-158.282101,0.00040344,120]
[393736352,1762956680077,-153.794407,0.00040344,120]
[393736353,1762956680087,-180.902965,0.00040344,120]
[393736354,1762956680096,-151.0,0.00040344,120]
[393736355,1762956680105,-151.0,0.00040344,120]
[393736356,1762956680114,-151.0,0.00040344,120]
[393736357,1762956680123,-153.938725,0.00040344,120]
[393736358,1762956680132,-161.563541,0.00040344,120]
[393736359,1762956680141,-151.0,0.00040344,120]
[393736360,1762956680150,-151.0,0.00040344,120]
[393736361,1762956680160,-151.0,0.00040344,120]
[393736362,1762956680169,-151.0,0.00040344,120]
[393736363,1762956680179,-151.0,0.00040344,120]
[393736364,1762956680188,-151.000001,0.00040344,120]
[393736365,1762956680197,-240.552389,0.00040344,30]
[393736366,1762956680207,-157.046074,0.00040344,120]
[393736367,1762956680217,-151.0,0.00040344,30]
[393736368,1762956680227,-151.0,0.00040344,30]
[393736369,1762956680236,-151.0,0.00040344,30]
[393736370,1762956680245,-151.0,0.00040344,120]
[393736371,1762956680255,-151.0,0.00040344,120]
[393736372,1762956680265,-151.0,0.00040344,120]
[393736373,1762956680274,-154.26487,0.00040344,120]
[393736374,1762956680283,-174.04403,0.00040344,120]
[393736375,1762956680292,-174.04403,0.00040344,120]
[393736376,1762956680301,-174.04403,0.00040344,120]
[393736377,1762956680310,-174.04403,0.00040344,120]
[393736378,1762956680319,-174.04403,0.00040344,120]
[393736379,1762956680329,-174.04403,0.00040344,120]
[393736380,1762956680338,-174.04403,0.00040344,120]
[393736381,1762956680347,-174.04403,0.00040344,120]
[393736382,1762956680358,-174.04403,0.00040344,120]
[393736383,1762956680367,-174.04403,0.00040344,120]
[393736384,1762956680376,-174.04403,0.00040344,120]
[393736385,1762956680386,-174.04403,0.00040344,120]
[393736386,1762956680395,-174.04403,0.00040344,120]
[393736387,1762956680404,-174.04403,0.00040344,120]
[393736388,1762956680413,-174.04403,0.00040344,120]
[393736389,1762956680423,-174.04403,0.00040344,120]
[393736390,1762956680432,-174.04403,0.00040344,120]
[393736391,1762956680441,-174.04403,0.00040344,120]
[393736392,1762956680450,-174.04403,0.00040344,120]
[393736393,1762956680460,-174.04402,0.00040344,120]
[393736394,1762956680469,-151.0,0.00040344,120]
[393736395,1762956680477,-151.0,0.00040344,120]
[393736396,1762956680487,-168.98989,0.00040344,120]
[393736397,1762956680496,-151.963465,0.00040344,120]
[393736398,1762956680505,-161.337183,0.00040344,120]
[393736399,1762956680514,-151.0,0.00040344,120]
[393736400,1762956680523,-179.037346,0.00040344,120]
[393736401,1762956680531,-151.0,0.00040344,120]
[393736402,1762956680540,-158.7237,0.00040344,120]
[393736403,1762956680550,-167.435468,0.00040344,120]